Cogmind - Beta 13 @@@ ROGUE MODE // 2024.04.04 @ 13:59:32 Player: BRAD-ly Result: Destroyed by Autobeam Turret with Autobeam Performance ------------- Evolutions (0) 0 Regions Visited (3) 600 Robots Destroyed (23) 115 Value Destroyed (330) 330 Prototype IDs (10) 200 Alien Tech Used (0) 0 Bonus (-299) -299 TOTAL SCORE: 946 Bonus ------- Friendly Fire -299 Cogmind --------- Core Integrity 0/250 Matter 182/300 Energy 209/265 System Corruption 0% Temperature Cool (6) Movement Core (250) Ox4 Location -10/Subcaves Parts ------- > --- POWER (1) -------- Improved Ion Engine > --- PROPULSION (2) --- (None) > --- UTILITY (2) ------ Large Storage Unit Weight Redist. System > --- WEAPON (2) ------- Light EM Pulse Cannon Subdweller Shrapnel Launcher > --- INVENTORY (15) --- Arachnoskeleton Power Shielding Medium Armor Plating Medium Armor Plating Medium Armor Plating Medium Armor Plating Hacking Suite Beam Rifle Beam Rifle Beam Rifle Light EM Pulse Cannon Heavy Assault Rifle Heavy Assault Rifle Peak State ------------ > --- POWER ------------ Improved Ion Engine > --- PROPULSION ------- Carbon-fiber Leg Wheel > --- UTILITY ---------- Large Storage Unit Weight Redist. System > --- WEAPON ----------- Beam Rifle Beamcaster > --- INVENTORY -------- Improved Ion Engine Power Shielding Medium Armor Plating Medium Armor Plating Medium Armor Plating Medium Armor Plating Hacking Suite Beam Rifle Beam Rifle Light EM Pulse Cannon Light EM Pulse Cannon Light EM Pulse Cannon Heavy Assault Rifle Heavy Assault Rifle Grenade Launcher [Rating: 18] Favorites ----------- Power Improved Ion Engine Engine Improved Ion Engine Propulsion Wheel Leg Carbon-fiber Leg Wheel Wheel Utility Weight Redist. System Device Weight Redist. System Storage Large Storage Unit Weapon Light EM Pulse Cannon Energy Gun Beamcaster Energy Cannon Light EM Pulse Cannon Ballistic Gun Heavy Assault Rifle Launcher Grenade Launcher Build | -11 -10 -10 -10 ------- Run | Yrd Mat Min Sub Slots Evolved . | . . . . Power . | . . . . Propulsion . | . . . . Utility . | . . . . Weapon . | . . . . Parts Attached 27 | 6 9 7 5 Power 4 | 1 2 . 1 Engine 4 | 1 2 . 1 Core . | . . . . Reactor . | . . . . Propulsion 5 | 2 . 2 1 Treads . | . . . . Leg 1 | . . 1 . Wheel 4 | 2 . 1 1 Hover . | . . . . Flight . | . . . . Utility 4 | 1 3 . . Device 1 | . 1 . . Storage 3 | 1 2 . . Processor . | . . . . Hackware . | . . . . Protection . | . . . . Artifact . | . . . . Weapon 14 | 2 4 5 3 Energy Gun 5 | 1 1 2 1 Energy Cannon 4 | . 1 2 1 Ballistic Gun 2 | 1 1 . . Ballistic Cannon . | . . . . Launcher 3 | . 1 1 1 Special Weapon . | . . . . Impact Weapon . | . . . . Slashing Weapon . | . . . . Piercing Weapon . | . . . . Special Melee Weapon . | . . . . Unidentified Prototypes . | . . . . Parts Lost 4 | . . 1 3 Power . | . . . . Propulsion 3 | . . 1 2 Utility . | . . . . Weapon 1 | . . . 1 Highest Loss Streak 2 | . . 1 2 To Critical Strikes . | . . . . Average Slot Usage (%) 92 | . 96 92 88 Engine 14 | . 14 14 14 Leg 7 | . . 11 10 Wheel 14 | . 28 9 7 Device 13 | . 11 14 14 Storage 14 | . 14 14 14 Energy Gun 7 | . 3 15 . Energy Cannon 11 | . 10 11 12 Ballistic Gun 2 | . 8 . . Launcher 5 | . 5 1 14 Naked Turns . | . . . . Heaviest Build 39 | 10 37 36 39 Greatest Support 26 | 20 26 26 21 Greatest Overweight (x) 4 | . 1 3 4 Average Overweight (x) 1 | . . 1 2 Largest Inventory Capacity 15 | 8 15 15 15 Average Capacity 13 | 6 11 15 15 Most Carried 15 | . 15 15 15 Average Carried 12 | . 9 15 14 Final Capacity 15 | 8 15 15 15 Final Carried 15 | . 15 15 15 Class Distribution -------------------- 92% | Mutant 7% | Scavenger-Mutant Dominant Class ---------------- Mutant | -10/Materials Mutant | -10/Mines Mutant | -10/Subcaves Resources | -11 -10 -10 -10 ----------- Run | Yrd Mat Min Sub Matter Collected 632 | 160 212 123 137 Remotely . | . . . . Salvage Created 692 | . 328 302 62 Parts 56 | . 21 25 10 Haulers Intercepted 2 | . 2 . . Recyclers Shooed 1 | . . 1 . Parts Field Recycled . | . . . . Retrieved Matter . | . . . . Parts Self-Destructed 7 | . . . 7 Prevented . | . . . . Kills | -11 -10 -10 -10 ------- Run | Yrd Mat Min Sub Combat Hostiles Destroyed 10 | . 2 6 2 Guns 2 | . 1 1 . Cannons 4 | . 1 3 . AOE 4 | . . 2 2 Classes Destroyed 11 | . 4 5 2 Worker 1 | . . 1 . Builder 1 | . . 1 . Tunneler 1 | . . 1 . Hauler 2 | . 2 . . Recycler 2 | . . 2 . Operator 2 | . 2 . . Watcher 3 | . 3 . . Swarmer 6 | . . 6 . Grunt 2 | . 2 . . Artisan 1 | . . . 1 Subdweller 2 | . . . 2 Thug 1 | . . 1 . Best Kill Streak 5 | . 3 5 2 Combat Bots Only 4 | . 2 4 2 Max Kills in Single Turn 3 | . 1 3 1 Gunslinging . | . . . . Exploded 2 | . . 2 1 Melee . | . . . . Uniques/NPCs Destroyed . | . . . . Combat | -11 -10 -10 -10 -------- Run | Yrd Mat Min Sub Hostile Shots Fired 80 | . 14 54 12 Missed 18 | . 3 8 7 Damage Taken 866 | . 166 362 338 Core 250 | . 34 90 126 Absorbed by Shields . | . . . . Core Remaining (%) 100 | 100 . . . Volleys Fired 62 | . 19 30 13 Largest 2 | . 2 2 2 Hottest 131 | . 86 131 96 Shots Fired 115 | . 38 54 23 Gun 54 | . 17 37 . Cannon 42 | . 17 15 10 Launcher 19 | . 4 2 13 Special . | . . . . Kinetic 21 | . 15 . 6 Thermal 39 | . 2 37 . Explosive 13 | . 4 2 7 Electromagnetic 42 | . 17 15 10 Robot Hit Streak 7 | . 7 5 3 Robot Miss Streak 5 | . 2 5 1 Penetration Max . | . . . . Secondary Targets . | . . . . Shots Hit Robots 44 | . 20 23 1 Core Hits 35 | . 12 19 4 Critical Kills . | . . . . Critical Parts Destroyed . | . . . . Critical Strikes 3 | . . 2 1 Burn 1 | . . 1 . Corrupt 2 | . . 1 1 Melee Attacks . | . . . . Impact . | . . . . Slashing . | . . . . Piercing . | . . . . Sneak Attacks . | . . . . Combat Hostiles . | . . . . Follow-up Attacks . | . . . . Damage Inflicted 1385 | . 503 564 318 Guns 431 | . 131 300 . Cannons 492 | . 315 120 57 Explosions 462 | . 57 144 261 Melee . | . . . . Ramming . | . . . . Kinetic 247 | . 131 . 116 Thermal 407 | . . 407 . Explosive 239 | . 57 37 145 Electromagnetic 492 | . 315 120 57 Impact . | . . . . Slashing . | . . . . Piercing . | . . . . Highest Corruption . | . . . . Average Corruption . | . . . . Corruption Purged . | . . . . Corruption Blocked . | . . . . Overload Shots . | . . . . Overflow Damage 30 | . 20 . 10 Projectiles 18 | . 18 . . Explosions 12 | . 2 . 10 Melee . | . . . . Knockbacks . | . . . . Impact . | . . . . Kinetic . | . . . . Secondary . | . . . . Self-Inflicted Damage 186 | . 25 . 161 Shots 8 | . 2 . 6 Rammed . | . . . . Targets Rammed . | . . . . Kicked . | . . . . Crushed . | . . . . Highest Temperature 414 | . 226 414 5 Average Temperature 152 | . 63 201 5 Received Heat Transfer 99 | . 81 . 18 Effects 3 | . . 3 . Shutdowns 1 | . . 1 . Energy Bleed 2 | . . 2 . Siege Activations . | . . . . Robots Corrupted . | . . . . Combat Hostiles . | . . . . Parts Fried 4 | . 4 . . Impact Corruptions . | . . . . Robots Melted . | . . . . Combat Hostiles . | . . . . Parts Melted 1 | . . 1 . Heat Transferred 977 | . . 977 . Parts Sabotaged . | . . . . Parts Stolen . | . . . . Parts Stripped . | . . . . Power Chain Reactions 1 | . . 1 . Alert | -11 -10 -10 -10 ------- Run | Yrd Mat Min Sub Peak Influence 157 | . 142 157 . Initial 5 | . . 5 . Average 38 | . 74 16 . Maximum Alert Level . | . . . . Low Security (%) 100 | 100 100 100 . Level 1 . | . . . . Level 2 . | . . . . Level 3 . | . . . . Level 4 . | . . . . Level 5 . | . . . . High Security . | . . . . Max Security . | . . . . Squads Dispatched 1 | . 1 . . Investigation . | . . . . Extermination . | . . . . Reinforcement 1 | . 1 . . Assault . | . . . . Garrison . | . . . . Intercept . | . . . . Searches Triggered . | . . . . Construction Impeded . | . . . . Haulers Reinforced . | . . . . Active Scanning Responses . | . . . . Cargo Convoy Interrupts . | . . . . Stealth | -11 -10 -10 -10 --------- Run | Yrd Mat Min Sub Distress Signals . | . . . . Communications Jammed . | . . . . Distress Signals . | . . . . Times Spotted 34 | . 10 6 18 Peak Tracking Total 8 | . 2 6 8 Tactical Retreats 2 | . . . 2 Traps | -11 -10 -10 -10 ------- Run | Yrd Mat Min Sub Traps Triggered 1 | . . . 1 Indirectly . | . . . . Trap Hack Attempts . | . . . . Triggered . | . . . . Disarmed . | . . . . Reprogrammed . | . . . . Reused . | . . . . Traps Extracted . | . . . . Installed . | . . . . Triggered . | . . . . Machines | -11 -10 -10 -10 ---------- Run | Yrd Mat Min Sub Machines Disabled 4 | . . . 4 Max in Single Turn 2 | . . . 2 Machines Repaired . | . . . . Machines Dismantled . | . . . . Machines Sabotaged . | . . . . Overloaded Fab Kills . | . . . . Hacking | -11 -10 -10 -10 --------- Run | Yrd Mat Min Sub Machines Accessed 1 | . . . 1 Terminals . | . . . . Fabricators . | . . . . Repair Stations . | . . . . Recycling Units . | . . . . Scanalyzers . | . . . . Garrison Access . | . . . . Total Hacks 9 | . . . 9 Successful 9 | . . . 9 Failed . | . . . . Catastrophic . | . . . . Database Lockouts . | . . . . Manual . | . . . . Terminals . | . . . . Fabricators . | . . . . Repair Stations . | . . . . Recycling Units . | . . . . Scanalyzers . | . . . . Garrison Access . | . . . . Terminal Hacks 9 | . . . 9 Record 8 | . . . 8 Derelict Proto ID Bank 1 | . . . 1 Fabricator Hacks . | . . . . Repair Station Hacks . | . . . . Recycling Unit Hacks . | . . . . Scanalyzer . | . . . . Garrison Access Hacks . | . . . . Unauthorized Hacks . | . . . . Terminals . | . . . . Fabricators . | . . . . Repair Stations . | . . . . Recycling Units . | . . . . Scanalyzers . | . . . . Garrison Access . | . . . . Data Cores Recovered 2 | . 2 . . Used . | . . . . Hacking Detections . | . . . . Full Trace Events . | . . . . Feedback Events . | . . . . Feedback Blocked . | . . . . Robot Schematics Acquired . | . . . . Robots Built . | . . . . Authchips . | . . . . Time . | . . . . Total Robot Build Rating . | . . . . Part Schematics Acquired . | . . . . Parts Built . | . . . . Authchips . | . . . . Time . | . . . . Total Part Build Rating . | . . . . Parts Repaired . | . . . . Time . | . . . . Parts Recycled . | . . . . Recycled Matter . | . . . . Retrieved Matter . | . . . . Retrieved Components . | . . . . Parts Scanalyzed . | . . . . Part Schematics Acquired . | . . . . Parts Damaged . | . . . . Bothacking | -11 -10 -10 -10 ------------ Run | Yrd Mat Min Sub Used RIF Installer . | . . . . Robots Hacked . | . . . . Non-combat . | . . . . Combat . | . . . . Robot Hacks Applied . | . . . . Relay Couplers Released . | . . . . Fabnet Peak Effective % . | . . . . Robots Rewired . | . . . . Allies Hacked . | . . . . Hacks Repelled . | . . . . Allies | -11 -10 -10 -10 -------- Run | Yrd Mat Min Sub Total Allies . | . . . . Largest Group . | . . . . Highest-Rated Group . | . . . . Highest-Rated Ally . | . . . . Total Orders . | . . . . Ally Attacks . | . . . . Total Damage . | . . . . Kills . | . . . . Allies Corrupted . | . . . . Allies Melted . | . . . . Intel | -11 -10 -10 -10 ------- Run | Yrd Mat Min Sub Robot Analysis Total . | . . . . Derelict Logs Recovered 1 | . . 1 . Drone Launches . | . . . . Drone Recoveries . | . . . . Exploration | -11 -10 -10 -10 ------------- Run | Yrd Mat Min Sub Turns Passed 1627 | 75 485 651 416 Spaces Moved 1147 | 83 403 404 257 Core 38 | 1 . 4 33 Treads . | . . . . Legs 187 | . . 137 50 Wheels 922 | 82 403 263 174 Hover . | . . . . Flight . | . . . . Fastest Speed 50 | 50 80 95 95 Average Speed 118 | 79 93 134 143 Slowest Speed 250 | 80 95 200 250 Overloaded Moves . | . . . . Propulsion Burnouts . | . . . . Robots Hopped . | . . . . Cave-ins Triggered . | . . . . Exploration Rate (%) 39 | 3 53 79 21 Regions Visited 3 Branch Regions 2 Pre-discovered Areas 1 | . . 1 . Known Exits Taken . | . . . . Unknown Exits Taken 3 | 1 1 1 . Scrap Searched 2 | . . 2 . Spaces Dug 51 | . 15 . 36 Terrain Destroyed 134 | . 28 8 98 Melee . | . . . . Projectile . | . . . . AOE 134 | . 28 8 98 Terrain Rammed . | . . . . Walls Destroyed . | . . . . Machines Disabled . | . . . . Actions | -11 -10 -10 -10 --------- Run | Yrd Mat Min Sub Total 1299 | 88 475 455 281 Wait 19 | . 7 12 . Move 1144 | 82 402 403 257 Hop . | . . . . Pick Up 23 | . 22 . 1 Fast Attach 16 | 6 5 3 2 Attach 4 | . 1 . 3 Detach 6 | . 4 . 2 Swap 7 | . 3 4 . Drop 18 | . 12 3 3 Fire 62 | . 19 30 13 Melee . | . . . . Ram . | . . . . Kick . | . . . . Crush . | . . . . Escape Stasis . | . . . . Rewire . | . . . . Trap . | . . . . Miscellaneous . | . . . . Route ------- -11/Scrapyard -10/Materials (discovered 3 exits: [*Mat x2] / [*Min]) -10/Mines (discovered 2 exits: [*Mat] / *Sub) -10/Subcaves (discovered 1 exit: [*Rec]) History --------- Turn | Location | Event 16 | -11/Scrapyard | Discovered new exit (range 16) 76 | -11/Scrapyard | Entered Materials 211 | -10/Materials | Discovered new exit (range 15) 280 | -10/Materials | Discovered new exit (range 16) 311 | -10/Materials | Build established: Mutant 554 | -10/Materials | Discovered new exit (range 9) 561 | -10/Materials | Entered Mines 588 | -10/Mines | Met a Derelict bent on vengeance 748 | -10/Mines | Learned location of Storage (-8) 871 | -10/Mines | Discovered new exit (range 6) 1192 | -10/Mines | Discovered new exit (range 9) 1212 | -10/Mines | Entered Subcaves 1278 | -10/Subcaves | Core integrity fell below 50% 1300 | -10/Subcaves | Visited 4L-MR0's lab 1337 | -10/Subcaves | Found Arachnoskeleton 1532 | -10/Subcaves | Core integrity fell below 20% 1582 | -10/Subcaves | Discovered new exit (range 10) 1628 | -10/Subcaves | Destroyed by Autobeam Turret with Autobeam Last Messages --------------- 01414_ Subatomizers dissect the Sub. Power Source. 01414_ W0-SAH(O) collects matter. 01452_ Acquired 14 matter. 01454_ Acquired 10 matter. 01460_ Acquired 8 matter. 01472_ Acquired 7 matter. 01474_ Acquired 9 matter. 01478_ Acquired 14 matter. 01481_ Acquired 12 matter. 01492_ Acquired 11 matter. 01494_ Acquired 15 matter. 01531_ Carbon-fiber Leg destroyed. 01531_ Destroyed Carbon-fiber Leg. 01531_ Wheel destroyed. 01531_ Destroyed Wheel. 01579_ S-10 Pest springs to life. 01582_ EXIT=FOUND 01586_ XP-50B(R) destroyed. 01626_ Machine disabled. Map ----- +----------------------------------------------------+ | ???# #?????????????????????????????????????? | | ???## ##????????????????????????????????????? | | ???## ##???????????????????????????????????? | | ???# #???????????????????????????????????? | | ???## #???????????????????????????????????? | | ???##% ###??????????##???????????????????????? | | ???# ##???????????# #???????????????????????? | | ???# ##?????????### #???????????????????????? | | ???## #????????## #???????????????????????? | | ????## #????????#% ###?????????????????????? | | ?????## ####??##### ##????????????????????? | | ????## #?## ## ###??????????????????? | | ???## ##?# ### #??????????????? | | ???# #### #???????????????? | | ???# ### ## #????????????? | | ???# ##??# ### ## ##??????????? | | ???##???## ##???###?? #??????????? | | ??????### ####?????# ???????????? | | ??????# ## ## ##???# ##??????????? | | ??????## ## ### ###? ???????????? | | ???????###### ##?# #? #????????????? | | ????????????# #??# ## #????????????? | | ??? #####?# ##?# ##???????????? | | ??# ## ### #???????????? | | ??# #; #???????????? | | ???# ;;@ #???????????? | | ???## #; #????????????? | | ????# ##;; #????????????? | | ???## ; ;#????????????? | | ???# ; ;;#????????????? | | ???# ;; ;;#????????????? | | ???## #; ;#????????????? | | ????## ##;; #???????????? | | ?????# ## ###; "??????????? | | ????# #?# ?#" ""?????????? | | ???? #??# ; ;;;;;#? """" "????????? | | ????? ????# & ;##" #? ###" #????????? | | ???????????## &% "; #? #??# ##????????? | | ????????????# %*& ? "#?# "??????????????? | | ???????????# ! ? t""??? ?????????????? | | ?????????? & %[?